bitfinex-derivatives/quotes_BTCF0:USTF0_20250929
["timestamp","ask_amount","ask_price","bid_price","bid_amount"]
[1759106586839,0.83193558,112090.0,112080.0,0.29549508]
[1759106587040,1.65009558,112090.0,112080.0,0.29549508]
[1759106588443,1.3921705,112090.0,112080.0,0.29549508]
[1759106588645,1.65009558,112090.0,112080.0,0.29549508]
[1759106588937,1.3921705,112090.0,112080.0,0.64259866]
[1759106589241,0.83193558,112090.0,112080.0,0.64259866]
[1759106589442,1.65001558,112090.0,112080.0,0.64259866]
[1759106590044,1.65001558,112090.0,112080.0,0.55342016]
[1759106596044,1.3920905,112090.0,112080.0,0.55342016]
[1759106596245,1.3920905,112090.0,112080.0,0.29555325]
[1759106597851,1.40802064,112090.0,112080.0,0.29555325]
[1759106600546,1.40802064,112090.0,112080.0,0.29455325]
[1759106600848,0.74704064,112090.0,112080.0,0.38373165]
[1759106601043,1.41678064,112090.0,112080.0,0.38373165]
[1759106601245,0.59894064,112090.0,112080.0,0.38373165]
[1759106601441,1.41978064,112090.0,112080.0,0.38373165]
[1759106601952,1.41478064,112090.0,112080.0,0.38373165]
[1759106602156,1.42178064,112090.0,112080.0,0.38373165]
[1759106605245,1.40583464,112090.0,112080.0,0.38373165]
[1759106608361,0.58799464,112090.0,112080.0,0.38373165]
[1759106608660,1.40567464,112090.0,112080.0,0.38373165]
[1759106611864,0.50063474,112090.0,112080.0,0.38373165]
[1759106612066,1.31823474,112090.0,112080.0,0.38373165]
[1759106612766,1.33418074,112090.0,112080.0,0.38373165]
[1759106615270,0.51658074,112090.0,112080.0,0.38373165]
[1759106615472,1.33414074,112090.0,112080.0,0.38373165]
[1759106616961,1.33409027,112090.0,112080.0,0.38373165]
[1759106620461,1.42326147,112090.0,112080.0,0.38373165]
[1759106620666,1.42326147,112090.0,112080.0,0.1257484]
[1759106620867,1.42326147,112090.0,112080.0,0.38373165]
[1759106621173,1.42326147,112090.0,112080.0,0.1257484]
[1759106621374,1.42326147,112090.0,112080.0,0.38373165]
[1759106621671,1.45532063,112090.0,112080.0,0.38373165]
[1759106623969,1.36614943,112090.0,112080.0,0.38373165]
[1759106624264,1.45532063,112090.0,112080.0,0.38373165]
[1759106624469,1.40731649,112090.0,112080.0,0.38373165]
[1759106624975,1.40731649,112090.0,112080.0,0.03657]
[1759106625177,1.40731649,112090.0,112080.0,0.29455325]
[1759106630570,1.04651649,112090.0,112080.0,0.29455325]
[1759106630873,1.40731649,112090.0,112080.0,0.29455325]
[1759106634382,1.45532063,112090.0,112080.0,0.29455325]
[1759106635882,1.42326147,112090.0,112080.0,0.29455325]
[1759106636383,1.42326147,112090.0,112080.0,0.03657]
[1759106636574,1.42326147,112090.0,112080.0,0.29455325]
[1759106640384,1.42326147,112090.0,112080.0,0.03657]
[1759106640779,1.42326147,112090.0,112080.0,0.29455325]
[1759106641980,0.60570147,112090.0,112080.0,0.29455325]
[1759106642185,1.42266147,112090.0,112080.0,0.29455325]
[1759106644789,0.60570147,112090.0,112080.0,0.29455325]
[1759106644988,0.58976214,112090.0,112080.0,0.9525365]
[1759106645185,1.45464628,112090.0,112080.0,0.9525365]
[1759106645879,1.31747094,112090.0,112080.0,0.9525365]
[1759106646088,1.40664214,112090.0,112080.0,0.9525365]
[1759106646285,0.51653027,112090.0,112080.0,1.0417157]
[1759106647090,1.42254147,112090.0,112080.0,1.0417157]
[1759106647889,0.60570147,112090.0,112080.0,1.0417157]
[1759106648092,1.42254147,112090.0,112080.0,1.0417157]
[1759106648889,0.60570147,112090.0,112080.0,1.0417157]
[1759106649085,0.11672468,112090.0,112080.0,1.0417157]
[1759106649286,0.03666166,112090.0,112080.0,1.4025157]
[1759106649487,0.03205888,112100.0,112090.0,0.1247512]
[1759106649689,0.03205888,112100.0,112090.0,1.0015177]
[1759106649887,0.03205888,112100.0,112090.0,1.4015177]
[1759106650183,0.03205888,112100.0,112090.0,1.14353445]
[1759106650387,0.48201488,112110.0,112100.0,0.1247432]
[1759106650590,0.48201488,112110.0,112100.0,0.38272645]
[1759106651686,0.49601488,112110.0,112100.0,0.39172955]
[1759106652084,0.04605888,112110.0,112100.0,0.79172955]
[1759106652285,0.13521418,112110.0,112100.0,0.79172955]
[1759106652489,0.14321418,112110.0,112100.0,0.79172955]
[1759106653786,0.19121832,112110.0,112100.0,0.79172955]
[1759106653987,0.14321418,112110.0,112100.0,0.79172955]
[1759106654190,0.05405888,112110.0,112100.0,1.4105128]
[1759106654390,0.05405888,112110.0,112100.0,1.15252955]
[1759106654593,0.05405888,112110.0,112100.0,1.4105128]
[1759106654889,0.05405888,112110.0,112100.0,1.15252955]
[1759106655494,0.14321418,112110.0,112100.0,1.15252955]
[1759106657293,0.05405888,112110.0,112100.0,1.15252955]
[1759106657690,0.022,112110.0,112100.0,1.15252955]
[1759106657892,0.022,112110.0,112100.0,1.96900955]
[1759106658093,0.1111553,112110.0,112100.0,1.96900955]
[1759106658293,0.1111553,112110.0,112100.0,2.2266395]
[1759106659096,0.1111553,112110.0,112100.0,1.4101595]
[1759106659302,0.1111553,112110.0,112100.0,2.2266395]
[1759106659598,0.022,112110.0,112100.0,2.2266395]
[1759106660299,0.022,112110.0,112100.0,2.2265595]
[1759106661595,0.0435153,112110.0,112100.0,2.2265595]
[1759106661795,0.07000414,112110.0,112100.0,2.2265595]
[1759106661998,0.09151944,112110.0,112100.0,2.2265595]
[1759106663102,0.09151944,112110.0,112100.0,2.2264795]
[1759106663900,0.09151944,112110.0,112100.0,1.4101595]
[1759106664301,0.09151944,112110.0,112100.0,2.2264395]
[1759106667702,0.09151944,112110.0,112100.0,1.4101595]
[1759106667902,0.09151944,112110.0,112100.0,2.2263595]
[1759106668104,0.09151944,112110.0,112100.0,1.4011564]
[1759106668404,0.11447944,112110.0,112100.0,1.8565164]
[1759106668707,0.09151944,112110.0,112100.0,2.2173164]
[1759106671206,0.09151944,112110.0,112100.0,2.22634519]
[1759106671704,0.07549477,112110.0,112100.0,2.22634519]
[1759106673206,0.07549477,112110.0,112100.0,2.30634519]
[1759106677197,0.07549477,112110.0,112100.0,2.56415179]
[1759106678413,0.06749477,112110.0,112100.0,2.56415179]
[1759106678710,0.07349477,112110.0,112100.0,2.56415179]
[1759106679311,0.06749477,112110.0,112100.0,2.56415179]
[1759106679517,0.06749477,112110.0,112100.0,2.16415179]
[1759106681506,0.0355153,112110.0,112100.0,2.16415179]
[1759106681709,0.04597947,112110.0,112100.0,2.16415179]
[1759106681909,0.06749477,112110.0,112100.0,2.16415179]
[1759106682110,0.0355153,112110.0,112100.0,2.16415179]
[1759106684815,0.0355153,112110.0,112100.0,1.34799179]
[1759106685004,0.0355153,112110.0,112100.0,2.16383179]
[1759106685710,0.0355153,112110.0,112100.0,1.34799179]
[1759106685912,0.0355153,112110.0,112100.0,2.16379179]
[1759106687613,0.0355153,112110.0,112100.0,1.34799179]
[1759106687812,0.0355153,112110.0,112100.0,2.16375179]
[1759106692315,0.014,112110.0,112100.0,2.16375179]
[1759106694535,0.014,112110.0,112100.0,2.52455179]
[1759106697908,0.014,112110.0,112100.0,1.70879179]
[1759106698112,0.014,112110.0,112100.0,2.52435179]
[1759106698614,0.03539594,112110.0,112100.0,2.52435179]
[1759106700222,0.03539594,112110.0,112100.0,1.70879179]
[1759106700426,0.14713224,112110.0,112100.0,1.0011574]
[1759106700618,0.54713224,112110.0,112100.0,0.5511932]
[1759106700819,0.03539594,112110.0,112100.0,2.074484]
[1759106701413,0.014,112110.0,112100.0,2.074484]
[1759106701614,0.014,112110.0,112100.0,2.08349248]
[1759106702026,0.03539522,112110.0,112100.0,2.08349248]
[1759106702219,0.03539522,112110.0,112100.0,1.26797248]
[1759106702523,0.03539522,112110.0,112100.0,2.08345248]
[1759106702823,0.03197947,112130.0,112120.0,0.122818]
[1759106703022,0.07998361,112140.0,112130.0,0.08914]
[1759106703317,0.03197947,112140.0,112130.0,0.9992232]
[1759106703716,0.07998361,112150.0,112140.0,0.1228021]
[1759106703925,0.10256361,112150.0,112140.0,0.6384153]
[1759106704313,0.03197947,112150.0,112140.0,2.0724619]
[1759106704518,0.07998361,112150.0,112140.0,2.0724619]
[1759106704925,0.09098361,112150.0,112140.0,2.0724619]
[1759106705119,0.04297947,112150.0,112140.0,2.0724619]
[1759106705325,0.05097947,112150.0,112140.0,2.0724619]
[1759106705725,0.05097947,112150.0,112140.0,2.08143563]
[1759106706421,0.05097947,112150.0,112140.0,2.16143563]
[1759106706623,0.07995569,112160.0,112150.0,0.1101441]
[1759106706928,0.03195155,112160.0,112150.0,0.9865573]
[1759106708226,0.03195155,112160.0,112150.0,1.8018773]
[1759106708727,0.03195155,112160.0,112150.0,1.8038773]
[1759106708932,0.03295155,112160.0,112150.0,1.8038773]
[1759106709832,0.03295155,112160.0,112150.0,0.9885573]
[1759106710024,0.03295155,112160.0,112150.0,1.8037973]
[1759106710527,0.03295155,112160.0,112150.0,1.8037573]
[1759106712032,0.03295155,112160.0,112150.0,1.8837573]
[1759106712620,0.08095569,112160.0,112150.0,1.8837173]
[1759106713928,0.03295155,112160.0,112150.0,1.8837173]
[1759106714324,0.08095569,112160.0,112150.0,1.8837173]
[1759106714830,0.02114927,112180.0,112170.0,0.1229082]
[1759106715031,0.52709356,112200.0,112180.0,0.1229003]
[1759106715225,0.4860206,112200.0,112190.0,0.6258555]
[1759106715427,0.4630568,112210.0,112190.0,1.6987421]
[1759106715627,0.56585553,112210.0,112200.0,0.6258476]
[1759106715826,0.4860068,112210.0,112200.0,0.6258476]
[1759106717628,0.39679,112220.0,112210.0,0.1228765]
[1759106717828,0.7436651,112220.0,112210.0,0.02115]
[1759106718132,0.1245044,112200.0,112190.0,0.3700413]
[1759106718534,0.1245044,112200.0,112190.0,0.1920413]
[1759106718728,0.1245044,112200.0,112190.0,1.0069613]
[1759106719225,0.1245044,112200.0,112190.0,1.5225745]
[1759106720026,0.1275044,112200.0,112190.0,1.5225745]
[1759106720227,0.1275044,112200.0,112190.0,0.44946826]
[1759106720422,0.1275044,112200.0,112190.0,0.44946926]
[1759106720634,0.5275044,112200.0,112190.0,1.18430926]
[1759106721131,0.43842,112200.0,112190.0,0.36946926]
[1759106723625,0.5275044,112200.0,112190.0,0.36946926]
[1759106727037,0.54832992,112200.0,112190.0,0.36946926]
[1759106730538,0.02382552,112200.0,112190.0,0.73026926]
[1759106730744,0.02382552,112200.0,112190.0,0.98769622]
[1759106731539,0.02382552,112200.0,112190.0,1.38769622]
[1759106731733,0.53419518,112220.0,112190.0,1.47678852]
[1759106731937,0.55618518,112220.0,112210.0,0.36945346]
[1759106732749,0.3608,112230.0,112220.0,0.1246685]
[1759106733044,0.4852771,112240.0,112230.0,0.02295]
[1759106733246,0.4852771,112240.0,112230.0,0.28037696]
[1759106734649,0.49402637,112240.0,112230.0,0.28037696]
[1759106735444,0.54179814,112240.0,112230.0,0.28037696]
[1759106736048,0.54279814,112240.0,112230.0,0.28037696]
[1759106740253,0.54279814,112240.0,112230.0,0.02295]
[1759106740455,0.1244885,112220.0,112210.0,0.02295]
[1759106740663,0.1245044,112200.0,112190.0,0.1120423]
[1759106740961,0.4853044,112200.0,112190.0,0.1120423]
[1759106741755,0.4853044,112200.0,112190.0,0.36946926]
[1759106743360,0.4853044,112200.0,112190.0,0.37446926]
[1759106743661,0.50600584,112200.0,112190.0,0.37446926]
[1759106744263,0.50600584,112200.0,112190.0,0.37646926]
[1759106744862,0.53800347,112200.0,112190.0,0.37646926]
[1759106745261,0.58585036,112200.0,112190.0,0.37646926]
[1759106746864,0.58585036,112200.0,112190.0,1.19074926]
[1759106747862,0.53800347,112200.0,112190.0,1.19074926]
[1759106749367,0.44891907,112200.0,112190.0,1.19074926]
[1759106749965,0.43548907,112200.0,112190.0,1.19074926]
[1759106750973,0.43548907,112200.0,112190.0,0.37646926]
[1759106751271,0.55318273,112200.0,112190.0,0.37646926]
[1759106751863,0.58521908,112200.0,112190.0,0.37646926]
[1759106752063,0.49613468,112200.0,112190.0,0.37646926]
[1759106752271,0.10058468,112200.0,112190.0,0.74991926]
[1759106752471,0.05273779,112200.0,112190.0,0.74991926]
[1759106752868,0.05391635,112200.0,112190.0,0.74991926]
[1759106753076,0.07461779,112200.0,112190.0,0.74991926]
[1759106754677,0.05273779,112200.0,112190.0,0.74991926]
[1759106754877,0.03203635,112200.0,112190.0,0.74991926]
[1759106755175,0.05273779,112200.0,112190.0,0.74991926]
[1759106755372,0.03203635,112200.0,112190.0,1.40734622]
[1759106755583,0.07988324,112210.0,112200.0,0.1108644]
[1759106755771,0.03203635,112210.0,112200.0,1.80762832]
[1759106756870,0.03203635,112210.0,112200.0,2.20962832]
[1759106761477,0.10176324,112220.0,112210.0,0.1235065]
[1759106761677,0.10176324,112220.0,112210.0,0.74173346]
[1759106761878,0.05391635,112220.0,112210.0,0.74173346]
[1759106762067,0.03203635,112220.0,112210.0,0.74173346]
[1759106762573,0.07988324,112230.0,112220.0,0.1108485]
[1759106762774,0.07988324,112230.0,112220.0,1.18231546]
[1759106762976,0.07988324,112230.0,112220.0,1.44886713]
[1759106763172,0.04784689,112230.0,112220.0,1.44886713]
[1759106763369,0.07987355,112230.0,112220.0,1.44886713]
[1759106763771,0.08287355,112230.0,112220.0,1.80966713]
[1759106763976,0.03502666,112230.0,112220.0,1.80966713]
[1759106764778,0.03502666,112230.0,112220.0,2.20966713]
[1759106765179,0.04784689,112240.0,112230.0,0.63834452]
[1759106765481,0.04784689,112250.0,112240.0,0.1177827]
[1759106765797,0.04784689,112250.0,112240.0,1.55000966]
[1759106768685,0.06972689,112250.0,112240.0,0.73600966]
[1759106768985,0.06830229,112250.0,112240.0,1.54988966]
[1759106769184,0.04784689,112250.0,112240.0,1.54988966]
[1759106770085,0.04784689,112250.0,112240.0,1.54984966]
[1759106770779,0.53232379,112260.0,112250.0,0.1108248]
[1759106770982,0.4637296,112260.0,112250.0,0.36825176]
[1759106771884,0.41588271,112260.0,112250.0,0.36825176]
[1759106772084,0.41688271,112260.0,112250.0,0.36825176]
[1759106772276,0.46483433,112260.0,112250.0,0.36825176]
[1759106772683,0.46483433,112260.0,112250.0,0.38090176]
[1759106773181,0.46483433,112260.0,112250.0,0.38967523]
[1759106773586,0.41688271,112260.0,112250.0,0.38967523]
[1759106774085,0.46482623,112260.0,112250.0,1.19466176]
[1759106774987,0.55386303,112260.0,112250.0,0.36825176]
[1759106775193,0.55386303,112260.0,112250.0,1.18197176]
[1759106777591,0.46482623,112260.0,112250.0,1.18197176]
[1759106777791,0.46482623,112260.0,112250.0,1.19106574]
[1759106778389,0.46482623,112260.0,112250.0,0.37734574]
[1759106778591,0.55386303,112260.0,112250.0,0.37734574]
[1759106778790,0.55386303,112260.0,112250.0,1.19098574]
[1759106779890,0.55385865,112260.0,112250.0,1.19098574]
[1759106780186,0.55385865,112260.0,112250.0,1.44785158]
[1759106780890,0.55385865,112260.0,112250.0,0.63421158]
[1759106781083,0.55385865,112260.0,112250.0,1.44781158]
[1759106781886,0.46482185,112260.0,112250.0,1.44781158]
[1759106782691,0.55385865,112260.0,112250.0,1.44781158]
[1759106782886,0.55385865,112260.0,112250.0,0.63421158]
[1759106785594,0.50591513,112260.0,112250.0,0.63421158]
[1759106786280,0.48079193,112260.0,112250.0,0.63421158]
[1759106786594,0.56982873,112260.0,112250.0,0.63421158]
[1759106791790,0.50591513,112260.0,112250.0,0.63421158]
[1759106794390,0.40411833,112260.0,112250.0,0.63421158]
[1759106794591,0.02143833,112260.0,112250.0,1.25215798]
[1759106794894,0.08557202,112260.0,112250.0,1.65215798]
[1759106795098,0.08557202,112260.0,112250.0,1.39501158]
[1759106795886,0.08457202,112260.0,112250.0,1.39501158]
[1759106796089,0.08557202,112260.0,112250.0,1.39501158]
[1759106796399,0.07984873,112280.0,112270.0,0.1206789]
[1759106796599,0.47303217,112290.0,112280.0,0.123521]
[1759106796600,0.13436217,112290.0,112280.0,0.123521]
[1759106796793,0.13436217,112290.0,112280.0,0.8949602]
[1759106797098,0.38293,112290.0,112280.0,0.8949602]
[1759106797689,0.38293,112290.0,112280.0,1.7320402]
[1759106797888,0.39556,112290.0,112280.0,1.7320402]
[1759106798096,0.39556,112290.0,112280.0,1.4748938]
[1759106798295,0.39556,112290.0,112280.0,0.6378138]
[1759106798490,0.39556,112290.0,112280.0,1.4748538]
[1759106799885,0.03476,112290.0,112280.0,1.4748538]
[1759106800090,0.03476,112290.0,112280.0,0.6378138]
[1759106800288,0.03476,112290.0,112280.0,1.4750538]
[1759106802600,0.03476,112290.0,112280.0,0.6378138]
[1759106802899,0.03476,112290.0,112280.0,0.110871]
[1759106803092,0.03476,112290.0,112280.0,1.4619238]
[1759106803395,0.03476,112290.0,112280.0,1.4620038]
[1759106804098,0.03476,112290.0,112280.0,0.69692697]
[1759106804302,0.03476,112290.0,112280.0,1.53396697]
[1759106804597,0.03476,112290.0,112280.0,1.53380697]
[1759106804798,0.03476,112290.0,112280.0,1.01951417]
[1759106805099,0.03476,112290.0,112280.0,1.53376697]
[1759106807202,0.39556,112300.0,112290.0,0.110863]
[1759106807392,0.4845651,112300.0,112290.0,0.3680094]
[1759106810403,0.54856554,112300.0,112290.0,0.3680094]
[1759106810902,0.4845651,112300.0,112290.0,0.3680094]
[1759106811693,0.54856554,112300.0,112290.0,0.3680094]
[1759106813001,0.51656109,112300.0,112290.0,0.3680094]
[1759106813205,0.4845651,112300.0,112290.0,0.3680094]
[1759106815397,0.4845651,112300.0,112290.0,0.110863]
[1759106815597,0.4845651,112300.0,112290.0,0.3680094]
[1759106816002,0.4845651,112300.0,112290.0,0.2789964]
[1759106816207,0.4845651,112300.0,112290.0,0.3680094]
[1759106816410,0.4845651,112300.0,112290.0,0.110863]
[1759106816603,0.4845651,112300.0,112290.0,0.3680094]
[1759106819910,0.124573,112290.0,112280.0,0.4485345]
[1759106820107,0.485373,112290.0,112280.0,0.7056809]
[1759106821001,0.39636,112290.0,112280.0,0.7056809]
[1759106821508,0.485373,112290.0,112280.0,0.6256809]
[1759106824210,0.7425194,112290.0,112270.0,0.1690265]
[1759106824406,0.485381,112280.0,112270.0,0.1113965]
[1759106824607,0.485381,112280.0,112270.0,0.3685429]
[1759106833403,0.7425274,112280.0,112270.0,0.2795164]
[1759106833612,0.1236389,112270.0,112260.0,0.30251033]
[1759106833914,0.4844389,112270.0,112260.0,0.64869353]
[1759106834216,1.7176389,112270.0,112260.0,0.39154713]
[1759106834417,0.8844389,112270.0,112260.0,0.64869353]
[1759106834621,1.7175589,112270.0,112260.0,0.64869353]
[1759106834809,0.8844389,112270.0,112260.0,0.64869353]
[1759106835011,1.7173989,112270.0,112260.0,0.64869353]
[1759106835319,1.7173989,112270.0,112260.0,0.13440073]
[1759106835617,0.8844389,112270.0,112260.0,0.65069353]
[1759106835819,1.7174389,112270.0,112260.0,0.65069353]
[1759106836316,0.8844389,112270.0,112260.0,0.65069353]
[1759106836512,1.7180789,112270.0,112260.0,0.65069353]
[1759106837618,1.7180789,112270.0,112260.0,0.65074434]
[1759106839617,1.7180789,112270.0,112260.0,0.56170754]
[1759106839913,1.9752253,112270.0,112260.0,0.39359794]
[1759106840118,1.9752253,112270.0,112260.0,0.65074434]
[1759106840417,1.7180789,112270.0,112260.0,0.11500154]
[1759106840608,2.04605305,112270.0,112260.0,0.02596474]
[1759106840811,2.40685305,112270.0,112260.0,0.02596474]
[1759106841007,1.57321305,112270.0,112260.0,0.02596474]
[1759106841516,2.40593305,112270.0,112260.0,0.02596474]
[1759106841915,2.40593305,112270.0,112260.0,0.002]
[1759106842815,1.57321305,112270.0,112260.0,0.002]
[1759106843021,2.40557305,112270.0,112260.0,0.002]
[1759106843315,2.40557305,112270.0,112260.0,0.02342]
[1759106843518,1.57321305,112270.0,112260.0,0.02342]
[1759106843714,2.14837409,112270.0,112260.0,0.02342]
[1759106844120,1.31605409,112270.0,112260.0,0.02342]
[1759106844323,2.14821409,112270.0,112260.0,0.002]
[1759106844524,2.40537305,112270.0,112260.0,0.002]
[1759106845218,2.43724904,112270.0,112260.0,0.002]
[1759106846023,1.60520904,112270.0,112260.0,0.002]
[1759106846229,2.43680904,112270.0,112260.0,0.002]
[1759106851826,2.40481305,112270.0,112260.0,0.002]
[1759106858329,0.14631478,112260.0,112250.0,0.03074625]
[1759106858524,0.76427374,112260.0,112250.0,0.03074625]
[1759106858724,0.1252047,112250.0,112240.0,0.04795236]
[1759106858922,1.57300366,112250.0,112240.0,0.04795236]
[1759106859323,0.1252127,112240.0,112230.0,0.41559192]
[1759106859523,0.4810127,112240.0,112230.0,0.41559192]
[1759106859932,0.4790127,112240.0,112230.0,0.41559192]
[1759106860232,0.4790127,112240.0,112230.0,0.15843296]
[1759106860431,0.4790127,112240.0,112230.0,0.41959192]
[1759106861324,0.4790127,112240.0,112230.0,0.33053132]
[1759106861725,0.4750127,112240.0,112230.0,0.41959192]
[1759106861926,0.4750127,112240.0,112230.0,0.37163956]
[1759106862129,0.4750127,112240.0,112230.0,0.43570305]
[1759106862631,0.4750127,112240.0,112230.0,0.44270305]
[1759106862833,0.4750127,112240.0,112230.0,0.37863956]
[1759106863234,0.48376126,112240.0,112230.0,0.37863956]
[1759106863931,0.74092022,112240.0,112230.0,0.05902852]
[1759106864440,0.74092022,112240.0,112230.0,0.011]
[1759106865235,1.31268126,112240.0,112230.0,0.011]
[1759106866932,1.31264126,112240.0,112230.0,0.03242]
[1759106867429,1.31264126,112240.0,112230.0,0.011]
[1759106868027,1.99123584,112240.0,112230.0,0.011]
[1759106868234,0.38117956,112230.0,112220.0,0.0001134]
[1759106868434,0.74197956,112230.0,112220.0,0.0001134]
[1759106869026,0.8131976,112230.0,112220.0,0.0001134]
[1759106869441,0.55603864,112230.0,112220.0,0.0001134]
[1759106869741,1.6460376,112230.0,112220.0,0.0001134]
[1759106870236,0.8141976,112230.0,112220.0,0.0001134]
[1759106870440,1.6459576,112230.0,112220.0,0.0001134]
[1759106871136,0.0890765,112210.0,112200.0,0.06406349]
[1759106871433,0.76298874,112210.0,112200.0,0.06406349]
[1759106871843,1.59450874,112210.0,112200.0,0.08602349]
[1759106872034,1.33734978,112210.0,112200.0,0.08602349]
[1759106872234,1.33742883,112210.0,112200.0,0.08602349]
[1759106872447,1.33742883,112210.0,112200.0,0.08802349]
[1759106872941,1.33742883,112210.0,112200.0,0.08902349]
[1759106873129,1.3592922,112210.0,112200.0,0.02496]
[1759106873536,1.3593322,112210.0,112200.0,0.02496]
[1759106874147,0.5277722,112210.0,112200.0,0.02496]
[1759106874349,1.3588122,112210.0,112200.0,0.37120336]
[1759106875140,0.5277722,112210.0,112200.0,0.37120336]
[1759106875348,1.3585322,112210.0,112200.0,0.37120336]
[1759106876540,1.3585322,112210.0,112200.0,0.1140444]
[1759106876742,1.36761842,112210.0,112200.0,0.1140444]
[1759106877749,1.36761842,112210.0,112200.0,0.37120336]
[1759106878553,0.53685842,112210.0,112200.0,0.37120336]
[1759106878759,1.36689842,112210.0,112200.0,0.37120336]
[1759106879457,0.53685842,112210.0,112200.0,0.37120336]
[1759106879853,1.36677842,112210.0,112200.0,0.37120336]
[1759106880249,1.2685757,112210.0,112200.0,0.77120336]
[1759106880458,1.2684157,112210.0,112200.0,0.77120336]
[1759106880756,0.4386957,112210.0,112200.0,0.77120336]
[1759106880957,1.2682957,112210.0,112200.0,1.03816232]
[1759106881344,0.41770242,112210.0,112200.0,1.03816232]
[1759106881551,0.02194242,112210.0,112200.0,1.03816232]
[1759106881752,7.905e-05,112210.0,112200.0,1.03816232]
[1759106884249,7.905e-05,112210.0,112200.0,1.39896232]
[1759106884951,7.905e-05,112210.0,112200.0,2.22840232]
[1759106885548,7.905e-05,112210.0,112200.0,2.22832232]
[1759106886858,7.905e-05,112210.0,112200.0,1.39896232]
[1759106887054,7.905e-05,112210.0,112200.0,0.8846444]
[1759106887254,0.02199905,112210.0,112200.0,2.23064232]
[1759106887456,7.905e-05,112210.0,112200.0,2.23064232]
[1759106893458,0.022643,112210.0,112200.0,2.23064232]
[1759106896556,0.022643,112210.0,112200.0,1.39896232]
[1759106896861,0.022643,112210.0,112200.0,2.22884232]
[1759106898263,0.022643,112210.0,112200.0,2.22864232]
[1759106898863,0.022643,112210.0,112200.0,1.39896232]
[1759106899062,0.022643,112210.0,112200.0,2.22808232]
[1759106900551,0.022643,112210.0,112200.0,2.22772232]
[1759106901565,0.022643,112210.0,112200.0,2.40692232]
[1759106902364,0.022643,112210.0,112200.0,2.66453251]
[1759106902767,0.022643,112210.0,112200.0,1.83577251]
[1759106903066,0.022643,112210.0,112200.0,2.66449251]
[1759106904069,0.022643,112210.0,112200.0,1.83577251]
[1759106904259,0.022643,112210.0,112200.0,2.66417251]
[1759106915476,0.022643,112210.0,112200.0,2.66241251]
[1759106919476,0.022643,112210.0,112200.0,2.26241251]
[1759106919871,0.044823,112210.0,112200.0,2.26121251]
[1759106920778,0.022643,112210.0,112200.0,2.26121251]
[1759106920973,0.022643,112210.0,112200.0,2.26117251]
[1759106925175,0.022643,112210.0,112200.0,1.4886044]
[1759106925374,0.022643,112210.0,112200.0,2.26077251]
[1759106925775,0.022643,112210.0,112200.0,2.26069251]
[1759106929283,7.905e-05,112210.0,112200.0,2.26069251]
[1759106929491,0.02281743,112210.0,112200.0,2.26069251]
[1759106931886,0.02281743,112210.0,112200.0,1.43577251]
[1759106932181,0.02281743,112210.0,112200.0,2.25977251]
[1759106932885,0.02281743,112210.0,112200.0,2.25969251]
[1759106933984,0.02281743,112210.0,112200.0,1.43577251]
[1759106934186,0.02281743,112210.0,112200.0,2.25953251]
[1759106936890,0.02281743,112210.0,112200.0,2.33953251]
[1759106942695,0.03199599,112230.0,112220.0,0.1230289]
[1759106942890,0.04799399,112240.0,112230.0,0.1239809]
[1759106943090,0.08484337,112250.0,112240.0,0.089053]
[1759106943091,0.06883692,112250.0,112240.0,0.089053]
[1759106943296,0.06883692,112250.0,112240.0,1.20084237]
[1759106943690,0.06888203,112250.0,112240.0,2.07626111]
[1759106944091,0.0480391,112250.0,112240.0,2.07626111]
[1759106944295,0.0480391,112250.0,112240.0,2.14634732]
[1759106944487,4.511e-05,112250.0,112240.0,2.14634732]
[1759106944683,0.0480391,112250.0,112240.0,2.07626111]
[1759106944894,0.0480391,112250.0,112240.0,1.25374111]
[1759106945098,4.511e-05,112250.0,112240.0,2.07610111]
[1759106945694,0.00404511,112250.0,112240.0,2.07610111]
[1759106946097,0.00804511,112250.0,112240.0,2.07610111]
[1759106946290,0.01104511,112250.0,112240.0,2.07610111]
[1759106946797,0.00804511,112250.0,112240.0,2.07610111]
[1759106946999,4.511e-05,112250.0,112240.0,2.07810111]
[1759106947894,4.511e-05,112250.0,112240.0,2.07774111]
[1759106948205,4.511e-05,112250.0,112240.0,2.07758111]
[1759106948904,4.511e-05,112250.0,112240.0,2.16628732]
[1759106951401,4.511e-05,112250.0,112240.0,2.16592732]
[1759106953501,4.511e-05,112250.0,112240.0,2.16564732]
[1759106954401,4.511e-05,112250.0,112240.0,2.16528732]
[1759106954703,4.511e-05,112250.0,112240.0,1.34444732]
[1759106954904,4.511e-05,112250.0,112240.0,1.26633795]
[1759106955107,4.511e-05,112250.0,112240.0,2.34432732]
[1759106956297,4.511e-05,112250.0,112240.0,2.08701795]
[1759106958307,4.511e-05,112250.0,112240.0,2.34432732]
[1759106960302,0.02197154,112250.0,112240.0,2.34432732]
[1759106962305,0.02197154,112250.0,112240.0,1.82955282]
[1759106970307,0.02197154,112250.0,112240.0,2.08670643]
[1759106970513,0.02197154,112250.0,112240.0,1.26602643]
[1759106970710,0.02197154,112250.0,112240.0,1.82863282]
[1759106971704,0.02197154,112250.0,112240.0,2.48578643]
[1759106971911,0.44442399,112280.0,112270.0,0.1107576]
[1759106972117,0.44442399,112280.0,112270.0,0.38067121]
[1759106973115,0.45642399,112280.0,112270.0,0.38067121]
[1759106973709,0.45642399,112280.0,112270.0,1.20039121]
[1759106974421,0.05999399,112280.0,112270.0,1.20039121]
[1759106975711,0.05999399,112280.0,112270.0,1.56119121]
[1759106975920,0.05999399,112280.0,112270.0,1.81834482]
[1759106976126,0.09203883,112280.0,112270.0,1.56119121]
[1759106976420,0.04404484,112280.0,112270.0,1.56119121]
[1759106976622,0.04404484,112280.0,112270.0,2.21834482]
[1759106976818,0.04404484,112280.0,112270.0,2.289509]
[1759106978013,0.04404484,112280.0,112270.0,2.369509]
[1759106978421,0.03201948,112300.0,112290.0,0.1107426]
[1759106978616,0.05370948,112300.0,112290.0,0.98584982]
[1759106978816,0.05370948,112300.0,112290.0,1.80548982]
[1759106979212,0.05370948,112300.0,112290.0,1.81437337]
[1759106979632,0.05770948,112300.0,112290.0,1.81433337]
[1759106979922,0.05770948,112300.0,112290.0,0.99473337]
[1759106980114,0.05770948,112300.0,112290.0,1.81433337]
[1759106980420,0.05770948,112300.0,112290.0,0.99473337]
[1759106980421,0.06870948,112300.0,112290.0,0.99473337]
[1759106980627,0.06870948,112300.0,112290.0,1.81433337]
[1759106981418,0.06870948,112300.0,112290.0,0.99473337]
[1759106981621,0.06870948,112300.0,112290.0,1.45349337]
[1759106981922,0.03669,112300.0,112290.0,1.45349337]
[1759106982319,0.015,112300.0,112290.0,0.63393337]
[1759106982516,0.015,112300.0,112290.0,1.81429337]
[1759106982715,0.09500446,112300.0,112290.0,1.81429337]
[1759106983317,0.09500446,112300.0,112290.0,1.81425337]
[1759106983620,0.03669,112300.0,112290.0,1.81425337]
[1759106983816,0.07175538,112300.0,112290.0,0.99473337]
[1759106984010,0.07175538,112300.0,112290.0,1.45345337]
[1759106984213,0.15175984,112300.0,112290.0,1.45345337]